bitfinex/quotes_BTCUSD_20250529
["timestamp","ask_amount","ask_price","bid_price","bid_amount"]
[1748542798152,1.66697539,106360.0,106350.0,0.58798418]
[1748542798588,1.36989539,106360.0,106350.0,0.58798418]
[1748542798750,1.66897539,106360.0,106350.0,0.58798418]
[1748542798952,2.33167537,106360.0,106350.0,0.58898418]
[1748542799241,2.34767537,106360.0,106350.0,0.58898418]
[1748542800720,1.67397539,106360.0,106350.0,0.58898418]
[1748542800939,2.31667537,106360.0,106350.0,0.58898418]
[1748542801398,2.34857537,106360.0,106350.0,0.58898418]
[1748542802441,2.35857537,106360.0,106350.0,0.58898418]
[1748542803483,1.07317541,106360.0,106350.0,0.58898418]
[1748542803706,2.40857537,106360.0,106350.0,0.58898418]
[1748542803915,2.39857537,106360.0,106350.0,0.58898418]
[1748542804358,2.49756537,106360.0,106350.0,0.58898418]
[1748542804566,2.44756537,106360.0,106350.0,0.58898418]
[1748542805649,2.34857537,106360.0,106350.0,0.58898418]
[1748542805870,2.34857537,106360.0,106350.0,0.08868962]
[1748542807363,2.34857537,106360.0,106350.0,0.06899123]
[1748542807364,2.41323334,106360.0,106350.0,0.06899123]
[1748542807598,2.44108659,106360.0,106350.0,0.06899123]
[1748542808215,2.43608659,106360.0,106350.0,0.06799123]
[1748542808416,2.14800659,106360.0,106350.0,0.06899123]
[1748542808707,1.31723539,106360.0,106350.0,0.06899123]
[1748542808935,2.06053537,106360.0,106350.0,0.06899123]
[1748542809146,0.77059456,106360.0,106350.0,0.06899123]
[1748542809352,1.03139454,106360.0,106350.0,0.06899123]
[1748542809537,1.32847454,106360.0,106350.0,0.06899123]
[1748542809742,1.73301539,106360.0,106350.0,0.06899123]
[1748542810032,1.37847454,106360.0,106350.0,0.06899123]
[1748542810285,1.73301539,106360.0,106350.0,0.06899123]
[1748542810712,1.71847454,106360.0,106350.0,0.06899123]
[1748542811090,1.73301539,106360.0,106350.0,0.06899123]
[1748542811464,1.82552661,106360.0,106350.0,0.06899123]
[1748542811668,1.73301539,106360.0,106350.0,0.06899123]
[1748542812198,1.04031541,106360.0,106350.0,0.06899123]
[1748542812399,1.68301539,106360.0,106350.0,0.06899123]
[1748542812586,1.73301539,106360.0,106350.0,0.06899123]
[1748542813033,1.77501539,106360.0,106350.0,0.06899123]
[1748542813229,2.41771537,106360.0,106350.0,0.06899123]
[1748542813430,1.77501539,106360.0,106350.0,0.06899123]
[1748542816736,2.41771537,106360.0,106350.0,0.06899123]
[1748542821527,2.40191537,106360.0,106350.0,0.06899123]
[1748542823200,2.38571537,106360.0,106350.0,0.06899123]
[1748542823624,2.40121537,106360.0,106350.0,0.06899123]
[1748542823825,2.38571537,106360.0,106350.0,0.06899123]
[1748542824029,1.74297539,106360.0,106350.0,0.06899123]
[1748542824446,1.34233539,106360.0,106350.0,0.06899123]
[1748542824654,1.73293539,106360.0,106350.0,0.10129123]
[1748542824860,1.73293539,106360.0,106350.0,0.06899123]
[1748542826876,0.29509456,106360.0,106350.0,0.10129123]
[1748542827109,0.20404061,106360.0,106350.0,0.74399121]
[1748542827324,0.20404061,106360.0,106350.0,0.10129123]
[1748542827534,0.19704061,106360.0,106350.0,0.10129123]
[1748542827737,0.18804061,106360.0,106350.0,0.10029123]
[1748542827992,0.19304061,106360.0,106350.0,0.11886429]
[1748542828204,0.19104061,106360.0,106350.0,0.10129123]
[1748542828440,0.19104061,106360.0,106350.0,0.10229123]
[1748542828653,0.18804061,106360.0,106350.0,0.10129123]
[1748542828866,0.18904061,106360.0,106350.0,0.10229123]
[1748542832258,1.35530576,106360.0,106350.0,0.10229123]
[1748542832474,1.26279454,106360.0,106350.0,0.06999123]
[1748542832681,1.27733539,106360.0,106350.0,0.06999123]
[1748542832913,1.27733539,106360.0,106350.0,0.10069123]
[1748542833564,1.27633539,106360.0,106350.0,0.09969123]
[1748542833775,1.27833539,106360.0,106350.0,0.09969123]
[1748542835558,2.01354659,106360.0,106350.0,0.06899123]
[1748542835782,1.93713537,106360.0,106350.0,0.06899123]
[1748542836223,1.95243537,106360.0,106350.0,0.06899123]
[1748542836445,1.96243537,106360.0,106350.0,0.06899123]
[1748542837318,1.96043537,106360.0,106350.0,0.06799123]
[1748542837535,1.96343537,106360.0,106350.0,0.06899123]
[1748542837955,1.2810332,106360.0,106350.0,0.06899123]
[1748542838581,1.2830332,106360.0,106350.0,0.06899123]
[1748542838792,0.68003541,106360.0,106350.0,0.06899123]
[1748542839014,1.2830332,106360.0,106350.0,0.06899123]
[1748542839461,1.2800332,106360.0,106350.0,0.06799123]
[1748542839662,1.2860332,106360.0,106350.0,0.06799123]
[1748542839890,1.2840332,106360.0,106350.0,0.06799123]
[1748542840104,1.6506732,106360.0,106350.0,0.06799123]
[1748542841887,1.6406732,106360.0,106350.0,0.06799123]
[1748542842091,1.6506732,106360.0,106350.0,0.06799123]
[1748542842302,1.6663732,106360.0,106350.0,0.06799123]
[1748542842520,1.6406732,106360.0,106350.0,0.06799123]
[1748542842734,1.03767541,106360.0,106350.0,0.06799123]
[1748542842955,0.64463541,106360.0,106350.0,0.06799123]
[1748542843210,1.6411532,106360.0,106350.0,0.09979123]
[1748542843414,0.63009456,106360.0,106350.0,0.09979123]
[1748542843618,0.64463541,106360.0,106350.0,0.09979123]
[1748542845537,1.2476332,106360.0,106350.0,0.06799123]
[1748542845788,1.2634332,106360.0,106350.0,0.06799123]
[1748542846001,1.3287332,106360.0,106350.0,0.06799123]
[1748542847520,1.2787332,106360.0,106350.0,0.06799123]
[1748542847726,1.09303541,106360.0,106350.0,0.06799123]
[1748542847937,1.6960332,106360.0,106350.0,0.06799123]
[1748542848550,1.09303541,106360.0,106350.0,0.06799123]
[1748542848754,1.7271332,106360.0,106350.0,0.06799123]
[1748542849378,1.6960332,106360.0,106350.0,0.06799123]
[1748542849998,1.09303541,106360.0,106350.0,0.06799123]
[1748542850212,1.6960332,106360.0,106350.0,0.06799123]
[1748542850905,1.09303541,106360.0,106350.0,0.06799123]
[1748542851081,1.7118332,106360.0,106350.0,0.06799123]
[1748542851696,1.7281332,106360.0,106350.0,0.06799123]
[1748542852150,1.82064442,106360.0,106350.0,0.06663123]
[1748542852352,1.82064442,106360.0,106350.0,0.06413762]
[1748542852353,1.7381332,106360.0,106350.0,0.06413762]
[1748542852569,2.28113099,106360.0,106350.0,0.01711418]
[1748542852977,1.6781332,106360.0,106350.0,0.01711418]
[1748542854210,1.2797332,106360.0,106350.0,0.01711418]
[1748542854518,1.6794532,106360.0,106350.0,0.01711418]
[1748542855547,1.6793332,106360.0,106350.0,0.01711418]
[1748542855759,0.61200187,106350.0,106340.0,0.0002477]
[1748542855971,1.33885361,106350.0,106340.0,0.0002477]
[1748542856175,1.9418514,106350.0,106340.0,0.0002477]
[1748542856381,1.33885361,106350.0,106340.0,0.0002477]
[1748542857020,0.73585582,106350.0,106340.0,0.0002477]
[1748542857229,1.34585361,106350.0,106340.0,0.0002477]
[1748542858116,1.9488514,106350.0,106340.0,0.0002477]
[1748542859182,1.34585361,106350.0,106340.0,0.0002477]
[1748542859760,0.74285582,106350.0,106340.0,0.0002477]
[1748542859962,1.3862248,106350.0,106340.0,0.0002477]
[1748542861101,1.3362248,106350.0,106340.0,0.0002477]
[1748542862915,1.3862248,106350.0,106340.0,0.0002477]
[1748542863346,1.44209365,106350.0,106340.0,0.0002477]
[1748542863772,1.3862248,106350.0,106340.0,0.0002477]
[1748542865905,1.7925848,106350.0,106340.0,0.0002477]
[1748542868357,1.13291582,106350.0,106340.0,0.0002477]
[1748542868585,2.0815248,106350.0,106340.0,0.0002477]
[1748542868822,2.0816848,106350.0,106340.0,0.0002477]
[1748542870002,2.0973848,106350.0,106340.0,0.0002477]
[1748542870417,2.12607849,106350.0,106340.0,0.0002477]
[1748542870846,2.21506849,106350.0,106340.0,0.0002477]
[1748542873508,2.21506849,106350.0,106310.0,0.0321]
[1748542873509,0.56146272,106320.0,106310.0,0.0321]
[1748542873667,0.56146272,106320.0,106310.0,0.0322477]
[1748542873668,2.34281463,106320.0,106310.0,0.0322477]
[1748542874249,2.41871463,106320.0,106310.0,0.0002477]
[1748542874431,2.43511463,106320.0,106310.0,0.0002477]
[1748542874840,1.11607667,106320.0,106310.0,0.0012477]
[1748542875047,2.40281463,106320.0,106310.0,0.0012477]
[1748542875260,2.40281463,106320.0,106310.0,0.0002477]
[1748542875465,2.40281463,106320.0,106310.0,0.0315477]
[1748542875466,1.12179667,106320.0,106310.0,0.0315477]
[1748542875673,2.40853463,106320.0,106310.0,0.0163477]
[1748542875894,2.00525463,106320.0,106310.0,0.0163477]
[1748542876104,2.41085463,106320.0,106310.0,0.0315477]
[1748542876312,2.40985463,106320.0,106310.0,0.0315477]
[1748542876513,1.99425463,106320.0,106310.0,0.0315477]
[1748542876726,0.74157582,106320.0,106310.0,0.0315477]
[1748542877132,1.40348565,106320.0,106310.0,0.0315477]
[1748542878014,0.76011667,106320.0,106310.0,0.0315477]
[1748542880296,0.64697582,106320.0,106310.0,0.0315477]
[1748542880713,0.66151667,106320.0,106310.0,0.0315477]
[1748542881138,1.57089835,106320.0,106310.0,0.0315477]
[1748542881392,1.57089835,106320.0,106310.0,0.0002477]
[1748542881804,1.60379835,106320.0,106310.0,0.0002477]
[1748542882017,1.67093835,106320.0,106310.0,0.0321477]
[1748542882501,1.67093835,106320.0,106310.0,0.0002477]
[1748542883997,1.26473835,106320.0,106310.0,0.0002477]
[1748542884234,1.06727667,106320.0,106310.0,0.0002477]
[1748542884466,1.26473835,106320.0,106310.0,0.0002477]
[1748542884677,1.68639835,106320.0,106310.0,0.0002477]
[1748542885921,1.08317667,106320.0,106310.0,0.0002477]
[1748542886126,1.68639835,106320.0,106310.0,0.0002477]
[1748542887349,1.06787667,106320.0,106310.0,0.0002477]
[1748542887553,1.67109835,106320.0,106310.0,0.0002477]
[1748542887781,0.66151667,106320.0,106310.0,0.0311477]
[1748542888022,0.64697582,106320.0,106310.0,0.0311477]
[1748542888255,1.05405582,106320.0,106310.0,0.0311477]
[1748542888487,0.64697582,106320.0,106310.0,0.0311477]
[1748542888714,0.95441582,106320.0,106310.0,0.0311477]
[1748542889272,0.95433582,106320.0,106310.0,0.0311477]
[1748542889735,0.95421582,106320.0,106310.0,0.0311477]
[1748542889949,0.64697582,106320.0,106310.0,0.0311477]
[1748542890150,0.95421582,106320.0,106310.0,0.0311477]
[1748542890578,0.64697582,106320.0,106310.0,0.0311477]
[1748542891572,0.64297582,106320.0,106310.0,0.0311477]
[1748542891802,0.64197582,106320.0,106310.0,0.0311477]
[1748542892245,0.63797582,106320.0,106310.0,0.0311477]
[1748542892480,0.63897582,106320.0,106310.0,0.0311477]
[1748542893192,0.63897582,106320.0,106310.0,0.0321477]
[1748542894086,0.94569582,106320.0,106310.0,0.0321477]
[1748542896450,0.63897582,106320.0,106310.0,0.0321477]
[1748542897806,0.94497582,106320.0,106310.0,0.0321477]
[1748542898049,1.58835161,106320.0,106310.0,0.0321477]
[1748542902288,1.58771161,106320.0,106310.0,0.0321477]
[1748542910469,1.28235161,106320.0,106310.0,0.0321477]
[1748542910698,1.58635161,106320.0,106310.0,0.0321477]
[1748542910946,1.28235161,106320.0,106310.0,0.0321477]
[1748542911157,1.58631161,106320.0,106310.0,0.0321477]
[1748542912475,1.58631161,106320.0,106310.0,0.0012477]
[1748542912695,2.27542825,106320.0,106310.0,0.0012477]
[1748542915781,2.27442825,106320.0,106310.0,0.0012477]
[1748542915991,0.68371667,106320.0,106310.0,0.0012477]
[1748542916257,2.35726825,106320.0,106310.0,0.0002477]
[1748542916464,2.35826825,106320.0,106310.0,0.0002477]
[1748542916669,2.37396825,106320.0,106310.0,0.0002477]
[1748542917097,2.37596825,106320.0,106310.0,0.0002477]
[1748542917751,1.08641667,106320.0,106310.0,0.0002477]
[1748542917956,2.37316825,106320.0,106310.0,0.0002477]
[1748542918587,1.08641667,106320.0,106310.0,0.0002477]
[1748542918837,2.37316825,106320.0,106310.0,0.0002477]
[1748542919047,2.37328825,106320.0,106310.0,0.0002477]
[1748542919263,2.07012825,106320.0,106310.0,0.0002477]
[1748542919478,2.35754825,106320.0,106310.0,0.0002477]
[1748542919725,0.03300407,106350.0,106330.0,0.0094045]
[1748542919959,0.21774621,106400.0,106370.0,0.21241964]
[1748542920199,0.21774621,106400.0,106380.0,0.81192]
[1748542920200,0.01814083,106400.0,106380.0,0.81192]
[1748542920417,0.05276339,106410.0,106400.0,0.993372]
[1748542920638,0.11463109,106430.0,106420.0,0.55893459]
[1748542920860,0.11463109,106430.0,106420.0,1.21535759]
[1748542921090,0.3213391,106430.0,106420.0,0.015]
[1748542921315,0.19733114,106420.0,106410.0,0.6607248]
[1748542921529,0.19733114,106420.0,106410.0,0.10605395]
[1748542921530,0.2067276,106420.0,106410.0,0.10605395]
[1748542921744,0.2067276,106420.0,106410.0,0.0314]
[1748542921957,0.2067276,106420.0,106410.0,0.01800746]
[1748542922378,0.20676628,106400.0,106390.0,0.0164]
[1748542922628,0.20676628,106400.0,106390.0,0.11046105]
[1748542922854,0.20676628,106400.0,106390.0,0.0194071]
[1748542923065,0.20676628,106400.0,106390.0,0.3475871]
[1748542923964,0.20676628,106400.0,106390.0,0.3535871]
[1748542924177,0.20676628,106400.0,106390.0,1.04618875]
[1748542924401,0.20776628,106400.0,106390.0,0.54964105]
[1748542924618,0.20776628,106400.0,106390.0,0.54976105]
[1748542925032,0.001,106400.0,106390.0,1.69849465]
[1748542925286,0.02919441,106400.0,106390.0,1.67969634]
[1748542925501,0.20776646,106400.0,106390.0,0.47776088]
[1748542925715,0.20776646,106400.0,106390.0,0.79866693]
[1748542925934,0.20776646,106400.0,106390.0,0.79862693]
[1748542926155,0.20776646,106400.0,106390.0,0.79870693]
[1748542926817,0.20776646,106400.0,106390.0,0.04670693]
[1748542927027,0.20776646,106400.0,106390.0,0.45846693]
[1748542928277,0.20776646,106400.0,106390.0,0.04670693]
[1748542928697,0.20776646,106400.0,106390.0,0.3385]
[1748542929824,0.20776646,106400.0,106390.0,0.3549]
[1748542930237,0.20776646,106400.0,106390.0,0.45790722]
[1748542930480,0.20776646,106400.0,106390.0,0.4549]
[1748542930900,0.20776646,106400.0,106390.0,0.0437]
[1748542931114,0.20776646,106400.0,106390.0,0.3545]
[1748542931542,0.18896992,106400.0,106350.0,1.14207497]
[1748542931808,0.18896992,106400.0,106370.0,0.34]
[1748542931809,0.18800526,106380.0,106370.0,0.34]
[1748542932013,0.18800526,106380.0,106370.0,0.43406148]
[1748542932879,0.18800526,106380.0,106370.0,0.44320753]
[1748542933107,0.18800526,106380.0,106370.0,0.7540166]
[1748542933326,0.18800526,106380.0,106370.0,0.65072907]
[1748542933535,0.18800526,106380.0,106370.0,0.66173686]
[1748542933536,0.18900526,106380.0,106370.0,0.66173686]
[1748542933740,0.18800526,106380.0,106370.0,0.65361684]
[1748542933948,0.18900526,106380.0,106370.0,0.34605684]
[1748542934162,0.18900526,106380.0,106370.0,0.65653684]
[1748542935059,0.18900526,106380.0,106370.0,0.00905684]
[1748542935748,0.18900526,106380.0,106370.0,0.31620907]
[1748542937264,0.18900526,106380.0,106370.0,0.00604907]
[1748542937476,0.18900526,106380.0,106370.0,0.31576907]
[1748542938998,0.18900526,106380.0,106370.0,0.31877694]
[1748542940390,0.18900526,106380.0,106370.0,0.42643089]
[1748542940624,0.001,106380.0,106370.0,1.60020388]
[1748542940885,0.22660479,106380.0,106370.0,1.59080345]
[1748542941322,0.20780551,106380.0,106370.0,0.79143203]
[1748542941581,0.20780551,106380.0,106370.0,0.78203089]
[1748542941816,0.20780551,106380.0,106370.0,0.79143203]
[1748542942513,0.20780551,106380.0,106370.0,0.78203039]
[1748542942514,0.19840552,106380.0,106370.0,0.78203039]
[1748542942737,0.19840552,106380.0,106370.0,0.88163039]
[1748542944816,0.19840552,106380.0,106370.0,0.89103153]
[1748542945026,0.19840552,106380.0,106370.0,1.08845543]
[1748542945249,0.20780551,106380.0,106370.0,1.08845543]
[1748542945471,0.001,106380.0,106370.0,1.70920444]
[1748542945694,0.00939902,106390.0,106380.0,0.3709]
[1748542945695,0.20678587,106390.0,106380.0,0.3709]
[1748542945953,0.19738685,106390.0,106380.0,0.44916132]
[1748542946181,0.19738685,106390.0,106380.0,0.84290132]
[1748542946858,0.19738685,106390.0,106380.0,0.84290109]
[1748542947352,0.19838685,106390.0,106380.0,0.84290109]
[1748542948695,0.19838685,106390.0,106380.0,0.84490109]
[1748542949472,0.16455498,106390.0,106380.0,0.85278788]
[1748542949688,0.16455498,106390.0,106380.0,0.84490109]
[1748542951132,0.16455498,106390.0,106380.0,0.84490122]
[1748542951614,0.16455498,106390.0,106380.0,0.09606122]
[1748542951857,1.13944935,106390.0,106380.0,0.00500727]
[1748542952100,0.19740534,106380.0,106370.0,4.907e-05]
[1748542952329,0.22860534,106380.0,106370.0,4.907e-05]
[1748542952555,0.83055304,106380.0,106370.0,4.907e-05]
[1748542952780,0.22860534,106380.0,106370.0,4.907e-05]
[1748542953245,0.19740534,106380.0,106370.0,0.30804907]
[1748542953742,0.19840534,106380.0,106370.0,0.31004907]
[1748542954208,0.19840534,106380.0,106370.0,0.74110302]
[1748542954445,0.19840534,106380.0,106370.0,0.75670302]
[1748542957267,0.19840534,106380.0,106370.0,0.75630302]
[1748542957489,0.19840534,106380.0,106370.0,0.74070302]
[1748542957958,0.19840534,106380.0,106370.0,0.74062302]
[1748542959803,0.19840534,106380.0,106370.0,0.74022302]
[1748542960985,0.19840534,106380.0,106370.0,0.75642302]
[1748542964166,0.19840534,106380.0,106370.0,0.75943062]
[1748542965076,0.19840534,106380.0,106370.0,0.77463062]
[1748542965571,0.175849,106380.0,106370.0,0.97205469]
[1748542965811,0.00939876,106390.0,106380.0,0.21193604]
[1748542966032,0.02819671,106390.0,106380.0,2.0077349]
[1748542966256,0.0187976,106390.0,106380.0,1.73662663]
[1748542966521,0.01879557,106400.0,106390.0,0.40483675]
[1748542966752,0.2161646,106400.0,106390.0,0.4456424]
[1748542967001,0.20676664,106400.0,106390.0,0.5394024]
[1748542967230,0.19736841,106400.0,106390.0,0.93637085]
[1748542967731,0.19736841,106400.0,106390.0,0.91804325]
[1748542967957,0.19736841,106400.0,106390.0,0.92105004]
[1748542968619,0.19836841,106400.0,106390.0,0.92297004]
[1748542969591,0.19836841,106400.0,106390.0,0.91037004]
[1748542969857,0.19836841,106400.0,106390.0,0.19874074]
[1748542970086,0.19836841,106400.0,106390.0,0.41148387]
[1748542970378,0.19836841,106400.0,106390.0,0.32058999]
[1748542970610,0.19836841,106400.0,106390.0,0.32058995]
[1748542971360,0.19736841,106400.0,106390.0,0.31858995]
[1748542971582,0.19836841,106400.0,106390.0,0.31758995]
[1748542971799,0.19836841,106400.0,106390.0,0.31959046]
[1748542972030,0.19836841,106400.0,106390.0,0.31959035]
[1748542972266,0.19836841,106400.0,106390.0,0.3130073]
[1748542972524,0.19836841,106400.0,106390.0,0.31959035]
[1748542972772,0.19836841,106400.0,106390.0,0.01359035]
[1748542972989,0.81661611,106400.0,106390.0,0.0135903]
[1748542973442,0.81661611,106400.0,106390.0,0.0070073]
[1748542974408,0.83171611,106400.0,106390.0,0.0070073]
[1748542975289,0.01880308,106360.0,106350.0,0.7476584]
[1748542975517,0.01880308,106360.0,106350.0,1.2461196]
[1748542976204,0.01880308,106360.0,106350.0,1.23953616]
[1748542976433,0.01980308,106360.0,106350.0,0.4293111]
[1748542976673,0.02080308,106360.0,106350.0,1.24949586]
[1748542976902,0.02080308,106360.0,106350.0,1.24949607]
[1748542977149,0.02080299,106360.0,106350.0,1.2588988]
[1748542977373,0.02080299,106360.0,106350.0,1.26970419]
[1748542977605,0.02080299,106360.0,106350.0,1.2631206]
[1748542977829,0.02080299,106360.0,106350.0,1.45773439]
[1748542978517,0.02080299,106360.0,106350.0,1.47227524]
[1748542978735,0.02080299,106360.0,106350.0,1.17422294]
[1748542978954,0.02080299,106360.0,106350.0,1.57422302]
[1748542979175,0.01140141,106360.0,106350.0,4.62020788]
[1748542979388,0.02080299,106360.0,106350.0,4.62020788]
[1748542979602,0.02080299,106360.0,106350.0,1.58598]
[1748542979822,0.02080299,106360.0,106350.0,1.57005742]
[1748542980260,0.02080299,106360.0,106350.0,1.23792573]
[1748542980261,0.002,106360.0,106350.0,1.23792573]
[1748542980544,0.002,106360.0,106350.0,4.27916596]
[1748542980769,0.002,106360.0,106350.0,4.20230596]
[1748542980984,0.002,106360.0,106350.0,4.77248251]
[1748542981200,0.002,106360.0,106350.0,5.06958251]
[1748542981407,0.002,106360.0,106350.0,7.41354551]
[1748542981626,0.002,106360.0,106350.0,7.15893536]
[1748542982528,0.002,106360.0,106350.0,7.42808636]
[1748542982749,0.002,106360.0,106350.0,7.44578636]
[1748542982966,0.002,106360.0,106350.0,7.44678636]
[1748542983407,0.002,106360.0,106350.0,2.18534589]
[1748542983623,0.002,106360.0,106350.0,6.8609436]
[1748542983837,0.002,106360.0,106350.0,6.87034633]
[1748542984486,0.002,106360.0,106350.0,7.27034633]
[1748542984930,0.002,106360.0,106350.0,7.12769433]
[1748542985631,0.002,106360.0,106350.0,6.66839863]
[1748542987176,0.002,106360.0,106350.0,6.37129863]
[1748542987396,0.002,106360.0,106350.0,6.9763535]
[1748542988725,0.002,106360.0,106350.0,7.0413065]
[1748542989831,0.002,106360.0,106350.0,2.0806975]
[1748542990066,0.002,106360.0,106350.0,7.0413065]
[1748542990761,0.22063459,106420.0,106400.0,0.21616433]
[1748542990990,0.22063459,106420.0,106410.0,0.40746734]
[1748542990991,0.0514923,106420.0,106410.0,0.40746734]
[1748542991217,0.00988826,106420.0,106410.0,0.41752257]
[1748542991445,0.00988835,106420.0,106410.0,0.81752158]
[1748542991666,0.01928463,106420.0,106410.0,0.82048351]
[1748542991882,0.02868118,106420.0,106410.0,0.81108652]
[1748542992105,0.22701249,106420.0,106410.0,0.80168936]
[1748542992325,0.24241249,106420.0,106410.0,0.80812477]
[1748542992562,0.24341249,106420.0,106410.0,0.81752202]
[1748542992998,0.24341249,106420.0,106410.0,0.80812468]
[1748542993345,0.23301638,106420.0,106410.0,0.79872743]
[1748542993430,0.23501638,106420.0,106410.0,0.79572125]
[1748542993662,0.23501638,106420.0,106410.0,0.80168806]
[1748542993883,0.23501638,106420.0,106410.0,0.82048265]
[1748542994100,0.23501638,106420.0,106410.0,0.82987982]
[1748542994101,0.03768507,106420.0,106410.0,0.82987982]
[1748542994324,0.03768507,106420.0,106410.0,0.82987929]
[1748542994325,0.03168171,106420.0,106410.0,0.82987929]
[1748542994545,0.03168171,106420.0,106410.0,0.82048067]
[1748542994760,0.2196163,106420.0,106410.0,0.8110835]
[1748542994983,0.22901302,106420.0,106410.0,0.83452963]
[1748542995199,0.02228507,106420.0,106410.0,0.84392627]
[1748542995410,0.02228507,106420.0,106410.0,0.83452928]
[1748542995641,0.02228507,106420.0,106410.0,1.17452846]
[1748542995642,0.03168171,106420.0,106410.0,1.17452846]
[1748542995889,0.22901214,106420.0,106410.0,1.15277583]
[1748542996107,0.04107755,106420.0,106410.0,1.162173]
[1748542996335,0.04107755,106420.0,106410.0,1.16513165]
[1748542996563,0.04107755,106420.0,106410.0,1.17452899]
[1748542996789,0.22901214,106420.0,106410.0,1.16513182]
[1748542997021,0.21961612,106420.0,106410.0,1.469292]
[1748542997256,0.23551612,106420.0,106410.0,1.45989466]
[1748542997477,0.22611984,106420.0,106410.0,1.45989466]
[1748542997700,0.22611984,106420.0,106410.0,1.469292]
[1748542998139,0.22611984,106420.0,106410.0,1.589292]
[1748542998367,0.22611984,106420.0,106410.0,1.59868925]
[1748542998587,0.22611984,106420.0,106410.0,1.589292]
[1748542998809,0.03818525,106420.0,106410.0,1.59868925]
[1748542999029,0.02228525,106420.0,106410.0,1.60808633]
[1748542999263,0.21961656,106420.0,106410.0,1.60808642]
[1748542999477,0.02228525,106420.0,106410.0,1.59868881]
[1748542999729,0.03168197,106420.0,106410.0,1.59272436]
[1748542999942,0.03168127,106420.0,106410.0,1.60808277]
[1748543000191,0.04107791,106420.0,106410.0,1.59868578]
[1748543000419,0.04107791,106420.0,106410.0,1.60808286]
[1748543000648,0.00349224,106420.0,106410.0,6.45391242]
[1748543000870,0.00349224,106420.0,106410.0,6.43739309]
[1748543001563,0.00349224,106420.0,106410.0,6.45193394]
[1748543001792,0.00349224,106420.0,106410.0,6.58027694]
[1748543002244,0.00349224,106420.0,106410.0,6.51498794]
[1748543002682,0.00349224,106420.0,106410.0,6.50909194]
[1748543002894,0.00349224,106420.0,106410.0,6.50167094]
[1748543003118,0.00349224,106420.0,106410.0,4.26196094]
[1748543003348,0.01288817,106420.0,106410.0,1.21758794]
[1748543003575,0.01288817,106420.0,106410.0,1.97654894]
[1748543003794,0.02228419,106420.0,106410.0,4.14378894]
[1748543004044,0.01288817,106420.0,106410.0,2.89557373]
[1748543004278,0.01288817,106420.0,106410.0,1.16545866]
[1748543004279,0.25961232,106420.0,106410.0,1.16545866]
[1748543004508,0.07167773,106420.0,106410.0,1.59816341]
[1748543004730,0.06228101,106420.0,106410.0,1.60756049]
[1748543004961,0.07167765,106420.0,106410.0,1.60756049]
[1748543005179,0.07167765,106420.0,106410.0,1.60210163]
[1748543005402,0.07167765,106420.0,106410.0,1.61149871]
[1748543005980,0.25961224,106420.0,106410.0,1.59270446]
[1748543006221,0.24081993,106420.0,106410.0,1.58330721]
[1748543006441,0.24081993,106420.0,106410.0,1.59280455]
[1748543006658,0.24081993,106420.0,106410.0,1.59924899]
[1748543007087,0.06228206,106420.0,106410.0,1.60864616]
[1748543008068,0.00349224,106420.0,106410.0,1.60439259]
[1748543008289,0.00349224,106420.0,106410.0,7.19950529]
[1748543008550,0.00939416,106440.0,106430.0,0.2161034]
[1748543008727,0.30690381,106450.0,106440.0,0.20668858]
[1748543009002,0.11902218,106450.0,106440.0,0.30370229]
[1748543009223,0.31629789,106450.0,106440.0,0.30370229]
[1748543010137,0.31629789,106450.0,106440.0,0.30370238]
[1748543010400,0.00014764,106450.0,106440.0,0.73343481]
[1748543010634,0.00014764,106450.0,106440.0,4.33825873]
[1748543010857,0.02824101,106450.0,106440.0,0.43899968]
[1748543011094,0.24111689,106450.0,106440.0,0.44195211]
[1748543011340,0.24311689,106450.0,106440.0,0.53589224]
[1748543011579,0.23811689,106450.0,106440.0,0.5442872]
[1748543011850,0.23811689,106450.0,106440.0,0.5462872]
[1748543012124,0.23811689,106450.0,106440.0,0.39218648]
[1748543012368,0.00114764,106450.0,106440.0,0.93047581]
[1748543012582,0.29694277,106460.0,106450.0,0.20666925]
[1748543012801,0.29694277,106460.0,106450.0,0.30072867]
[1748543013029,0.29694277,106460.0,106450.0,0.70072867]
[1748543013726,0.28754993,106460.0,106450.0,0.69133495]
[1748543013949,0.281157,106460.0,106450.0,0.49405933]
[1748543014169,0.27276398,106460.0,106450.0,0.49405933]
[1748543014621,0.27276398,106460.0,106450.0,0.09405933]
[1748543014878,0.22276398,106460.0,106450.0,0.09405933]
[1748543015091,0.29154975,106460.0,106450.0,0.29133504]
[1748543015308,0.29154975,106460.0,106450.0,0.30072894]
[1748543015540,0.29154975,106460.0,106450.0,0.30368187]
[1748543015756,0.27276398,106460.0,106450.0,0.09701226]
[1748543015978,0.27276398,106460.0,106450.0,0.09105395]
[1748543016644,0.0630787,106460.0,106450.0,0.29772347]
[1748543016895,0.004,106460.0,106450.0,6.39315242]
[1748543017120,0.004,106460.0,106450.0,5.68244961]
[1748543017340,0.004,106460.0,106450.0,5.62254661]
[1748543017563,0.001,106460.0,106450.0,5.62254661]
[1748543017792,0.02817561,106470.0,106460.0,0.63775951]
[1748543018014,0.02817561,106470.0,106460.0,0.73575791]
[1748543018234,0.02817561,106470.0,106460.0,0.83267791]
[1748543018664,0.02817552,106470.0,106460.0,1.23267791]
[1748543019620,0.00939196,106470.0,106460.0,1.23267791]
[1748543019865,0.21702257,106470.0,106460.0,0.91625933]
[1748543020083,0.002,106470.0,106460.0,6.69129567]
[1748543020300,0.002,106470.0,106460.0,5.83139067]
[1748543020739,0.001,106470.0,106460.0,5.85829067]
[1748543020967,0.001,106470.0,106460.0,5.97828984]
[1748543021196,0.22539221,106480.0,106470.0,0.55177941]
[1748543021468,0.03756351,106480.0,106470.0,1.31705675]
[1748543021686,0.0469553,106480.0,106470.0,1.32644871]
[1748543021910,0.01878198,106480.0,106470.0,1.79923608]
[1748543022125,0.04337262,106480.0,106470.0,1.61357577]
[1748543022559,0.04337262,106480.0,106470.0,1.59323577]
[1748543022774,0.05276387,106480.0,106470.0,1.57967577]
[1748543022987,0.05276387,106480.0,106470.0,1.46389077]
[1748543023284,0.24059327,106480.0,106470.0,1.4451073]
[1748543023492,0.06387323,106480.0,106470.0,1.46389095]
[1748543023747,0.24231129,106480.0,106470.0,0.93491669]
[1748543024030,0.24231129,106480.0,106470.0,0.098007]
[1748543024257,0.54563129,106480.0,106470.0,0.00400408]
[1748543026074,0.24331129,106480.0,106470.0,0.00300408]
[1748543026298,0.54643129,106480.0,106470.0,0.00300408]
[1748543026555,0.50743129,106480.0,106470.0,0.00300408]
[1748543027019,0.25431129,106480.0,106470.0,0.00300408]
[1748543027260,0.81625899,106480.0,106470.0,0.00300408]
[1748543027475,0.81625899,106480.0,106460.0,0.12294897]
[1748543027476,0.24723848,106470.0,106460.0,0.12294897]
[1748543027733,1.02821243,106470.0,106460.0,0.12300512]
[1748543027967,1.24478098,106470.0,106460.0,0.0995]
[1748543028198,0.20670801,106430.0,106420.0,0.0814786]
[1748543028437,0.20670801,106430.0,106420.0,0.5155384]
[1748543028691,0.19731261,106430.0,106420.0,0.5133376]